bitfinex/quotes_ETHUSD_20220119
["timestamp","ask_amount","ask_price","bid_price","bid_amount"]
[1642622828581,1.2482,3127.6,3126.7,1.48620644]
[1642622828582,0.00170527,3127.1,3126.7,1.48620644]
[1642622828979,0.00113685,3127.0,3126.9,1.19326633]
[1642622829180,0.00113685,3127.0,3126.9,1.48620644]
[1642622829382,0.00113685,3127.0,3126.8,1.27819292]
[1642622829581,0.00113685,3127.0,3126.9,1.52323155]
[1642622830590,1.18533258,3127.0,3126.9,1.52323155]
[1642622830791,0.00113685,3127.0,3126.9,1.52323155]
[1642622830990,0.00113685,3127.0,3126.6,0.00113684]
[1642622831190,0.1279,3126.9,3126.6,0.00113684]
[1642622831390,0.1279,3126.9,3126.4,1.52341331]
[1642622831391,0.1279,3126.9,3126.4,1.525687]
[1642622831589,0.1279,3126.9,3126.5,0.00170527]
[1642622831791,1.18419573,3126.8,3126.5,0.00170527]
[1642622831989,1.48419573,3126.8,3126.5,0.00170527]
[1642622832190,1.18419573,3126.7,3126.3,0.00284211]
[1642622833350,1.18419573,3126.7,3126.3,1.52625542]
[1642622833547,1.18419573,3126.7,3126.3,0.00284211]
[1642622833748,1.18419573,3126.7,3126.4,0.00227369]
[1642622834147,1.18419573,3126.7,3125.9,1.4881321]
[1642622834346,1.18419573,3126.7,3126.0,1.48301629]
[1642622834547,2.18419573,3126.7,3126.0,1.48756367]
[1642622834747,2.18419573,3126.7,3125.9,1.52484101]
[1642622834748,1.18419573,3126.6,3126.1,1.48699525]
[1642622834951,1.18419573,3126.6,3126.2,1.48301629]
[1642622835152,1.18419573,3126.6,3126.2,1.48642683]
[1642622835352,1.18419573,3126.6,3126.3,1.4858584]
[1642622835551,1.18419573,3126.6,3126.3,0.00284211]
[1642622835751,1.18419573,3126.7,3126.4,0.00227369]
[1642622835955,1.19601259,3126.8,3126.0,1.48781409]
[1642622836182,1.19601259,3126.8,3125.9,1.52484101]
[1642622836183,1.18419573,3126.7,3126.1,4.48724567]
[1642622836384,1.18419573,3126.6,3126.2,1.48326671]
[1642622836585,0.01181686,3126.8,3126.2,1.48667725]
[1642622836586,1.18419573,3126.5,3126.2,1.48667725]
[1642622836785,1.18419573,3126.4,3126.3,0.00284211]
[1642622836986,0.01181686,3126.8,3126.3,0.00284211]
[1642622837189,1.22092072,3126.7,3126.3,0.00284211]
[1642622837386,1.22092072,3126.7,3126.5,1.37897338]
[1642622837588,1.22092072,3126.7,3126.6,1.48326671]
[1642622837785,1.22092072,3126.7,3126.6,1.48440355]
[1642622838594,1.22205757,3127.0,3126.6,1.48440355]
[1642622838786,1.22092072,3126.9,3126.6,1.48440355]
[1642622838988,1.22092072,3126.8,3126.6,1.48440355]
[1642622839387,1.22092072,3126.7,3126.6,1.48440355]
[1642622839830,1.0,3126.9,3126.6,1.48440355]
[1642622839831,1.22092072,3126.8,3126.6,1.48440355]
[1642622840036,0.00113685,3127.0,3126.6,1.48440355]
[1642622840037,1.22092072,3126.7,3126.6,0.00113684]
[1642622840235,1.22205757,3127.0,3126.6,0.00113684]
[1642622840635,1.22205757,3127.0,3125.9,1.4875769]
[1642622840836,1.22205757,3127.0,3126.2,1.20080659]
[1642622841035,1.22205757,3127.0,3126.3,1.48246109]
[1642622841240,1.22205757,3127.0,3126.3,1.4853032]
[1642622841536,1.22205757,3127.0,3126.4,0.00227369]
[1642622842336,1.22205757,3127.0,3126.7,1.45485956]
[1642622842738,1.52205757,3127.0,3126.4,0.00227369]
[1642622842943,1.22092072,3126.9,3126.4,0.00227369]
[1642622843137,1.22092072,3126.9,3126.1,1.48297026]
[1642622843138,1.36065087,3126.9,3126.1,1.48297026]
[1642622843338,1.68192072,3126.8,3126.1,1.48694922]
[1642622843592,1.22092072,3126.7,3126.2,1.4863808]
[1642622843794,1.34882072,3126.7,3126.3,1.48297026]
[1642622843988,1.52092072,3126.6,3126.4,1.48297026]
[1642622844188,1.22092072,3126.5,3126.4,0.00227369]
[1642622844387,1.22092072,3126.5,3126.1,1.48297026]
[1642622844388,1.22092072,3126.5,3125.7,1.26119096]
[1642622844788,1.22092072,3126.5,3125.6,4.0932]
[1642622844789,1.22092072,3126.5,3125.8,0.00568423]
[1642622845192,1.22092072,3126.5,3125.7,0.00625266]
[1642622845392,1.22092072,3126.5,3125.6,0.00682108]
[1642622845593,1.22092072,3126.5,3125.8,1.19107782]
[1642622845993,1.22092072,3126.5,3125.9,0.00511581]
[1642622846994,2.3294,3126.7,3125.9,0.00511581]
[1642622846995,1.22092072,3126.4,3125.9,0.00511581]
[1642622847195,1.22092072,3126.3,3125.9,0.00511581]
[1642622847441,0.1279,3126.2,3125.6,0.00682108]
[1642622847642,1.22092072,3126.1,3125.4,0.00795793]
[1642622848242,1.22092072,3126.1,3125.2,0.00909477]
[1642622848442,1.22092072,3126.1,3125.3,1.52536043]
[1642622848643,1.22092072,3126.1,3125.2,0.00909477]
[1642622848842,1.22092072,3126.1,3125.4,0.00795793]
[1642622849045,1.22092072,3126.1,3125.2,0.00909477]
[1642622849845,1.98192072,3126.1,3125.2,0.00909477]
[1642622850045,1.22092072,3126.0,3125.2,0.00909477]
[1642622850243,0.1279,3125.9,3125.2,0.00909477]
[1642622850549,2.82009044,3125.8,3125.2,0.00909477]
[1642622850747,4.94000422,3125.7,3125.2,0.00909477]
[1642622850945,4.94000422,3125.7,3124.7,0.03]
[1642622850946,8.94628378,3125.6,3124.7,0.03]
[1642622851186,8.94628378,3125.6,3124.8,0.0022737]
[1642622851187,23.74370178,3125.5,3124.8,0.0022737]
[1642622851386,6.1666844,3124.9,3124.8,0.0022737]
[1642622851608,13.4997847,3124.9,3124.8,0.0022737]
[1642622851787,13.7997847,3124.9,3124.8,0.0022737]
[1642622852192,7.6331003,3124.9,3124.8,0.0022737]
[1642622852790,4.33012072,3124.9,3124.8,0.0022737]
[1642622852990,2.189,3124.9,3124.8,0.0022737]
[1642622853189,4.32603588,3124.9,3124.8,0.0022737]
[1642622853590,6.54064085,3124.9,3124.3,0.00511581]
[1642622853790,1.128,3124.8,3124.3,0.00511581]
[1642622853991,3.12180686,3124.7,3124.3,0.00511581]
[1642622854195,1.128,3124.6,3124.3,0.00511581]
[1642622855037,0.128,3124.6,3124.3,0.00511581]
[1642622855439,3.73021669,3124.7,3124.3,0.00511581]
[1642622855637,1.0,3124.6,3124.3,0.00511581]
[1642622855940,2.99212821,3124.5,3124.3,0.00511581]
[1642622856141,6.428,3124.4,3124.3,0.00511581]
[1642622856341,4.9,3124.3,3123.0,3.7358]
[1642622856541,1.22392226,3123.8,3122.7,5.48399028]
[1642622856744,1.22392226,3123.8,3123.1,0.00682109]
[1642622856745,3.74616025,3123.7,3123.1,0.00682109]
[1642622856942,0.128,3123.6,3123.1,0.00682109]
[1642622857142,0.128,3123.6,3122.2,4.0367]
[1642622857143,1.128,3123.6,3122.6,0.0096632]
[1642622857339,1.128,3123.6,3122.5,0.01023163]
[1642622857340,3.97691872,3123.5,3122.5,0.01023163]
[1642622857542,1.0,3123.4,3122.3,0.01136847]
[1642622857738,3.2562907,3123.3,3122.3,0.01136847]
[1642622857939,3.5562907,3123.3,3122.3,1.55639719]
[1642622858140,1.0,3123.2,3122.6,1.19060777]
[1642622858449,1.0,3123.2,3122.7,0.00909478]
[1642622859184,1.0,3123.4,3122.8,1.28026224]
[1642622859387,1.0,3123.4,3122.7,0.00909478]
[1642622859586,1.3,3123.4,3122.9,0.00795793]
[1642622859787,1.0,3123.4,3122.8,1.11083603]
[1642622859989,0.461,3123.5,3122.9,0.00795793]
[1642622860587,3.1761,3123.7,3122.9,0.00795793]
[1642622860789,3.1761,3123.7,3123.4,1.50657563]
[1642622860988,1.0,3123.6,3123.4,1.50657563]
[1642622861188,0.3,3123.7,3123.4,1.50657563]
[1642622861189,0.3,3123.7,3123.5,0.00454739]
[1642622861399,2.061,3123.9,3123.5,0.00454739]
[1642622861589,5.21122476,3123.9,3123.5,0.00454739]
[1642622861788,4.21122476,3123.9,3122.8,0.00852636]
[1642622861994,1.0,3123.8,3122.7,0.00909478]
[1642622862191,4.60909232,3123.7,3122.7,0.00909478]
[1642622862469,1.46189003,3123.5,3122.3,1.37962792]
[1642622862758,3.65421668,3123.4,3122.4,1.24627883]
[1642622862956,0.589,3123.3,3122.4,0.01080005]
[1642622863156,0.589,3123.3,3122.3,1.37962792]
[1642622863157,3.63201419,3123.2,3122.5,0.01023163]
[1642622863355,0.589,3123.1,3122.4,0.01080005]
[1642622863556,2.189,3123.1,3122.4,0.01080005]
[1642622863755,2.96381755,3123.0,3122.4,0.01080005]
[1642622863956,2.189,3123.1,3122.4,0.01080005]
[1642622864357,0.589,3123.1,3122.4,0.01080005]
[1642622864562,1.1483,3123.4,3123.0,1.37635792]
[1642622864758,0.85719844,3123.5,3123.0,1.37635792]
[1642622865161,0.461,3123.5,3123.0,1.37635792]
[1642622865360,0.128,3123.8,3123.0,1.37635792]
[1642622865563,1.1939,3123.9,3123.7,1.22229378]
[1642622865862,0.83613522,3124.4,3123.8,0.00284212]
[1642622866091,0.128,3124.6,3123.8,0.00284212]
[1642622866290,0.128,3124.5,3123.8,0.00284212]
[1642622866491,0.46213684,3124.5,3123.8,0.00284212]
[1642622866690,0.46213684,3124.5,3122.8,3.7459]
[1642622866691,0.128,3124.4,3123.0,0.00738951]
[1642622866890,0.461,3124.3,3122.9,0.00795793]
[1642622867100,18.848,3124.2,3122.9,0.00795793]
[1642622867395,18.848,3124.2,3122.1,0.01240309]
[1642622867396,18.72,3123.6,3122.4,0.01080005]
[1642622867693,18.72,3123.6,3122.2,0.0119369]
[1642622867694,18.72,3123.4,3122.2,0.0119369]
[1642622867991,18.72,3123.4,3122.0,0.01307374]
[1642622867992,24.01928366,3123.3,3122.0,0.01307374]
[1642622868193,3.11863864,3123.2,3122.0,0.01307374]
[1642622868390,4.25555039,3123.1,3122.0,0.01307374]
[1642622868592,5.55555039,3123.1,3122.2,1.51749127]
[1642622868791,5.85555039,3123.1,3122.2,1.51749127]
[1642622868991,5.85555039,3123.1,3122.3,0.01136847]
[1642622870439,2.189,3123.1,3122.3,0.01136847]
[1642622870637,5.22386825,3123.1,3122.3,0.01136847]
[1642622871440,2.189,3123.1,3122.3,0.01136847]
[1642622871639,1.589,3123.1,3122.3,0.01136847]
[1642622871939,3.87050455,3123.1,3122.3,0.01136847]
[1642622872140,0.889,3123.1,3122.3,0.01136847]
[1642622872338,3.7931279,3123.1,3122.3,0.01136847]
[1642622872537,3.4931279,3123.1,3122.3,0.01136847]
[1642622873141,1.0,3123.0,3122.3,0.01136847]
[1642622873341,3.07708513,3122.9,3122.3,0.01136847]
[1642622873598,3.07708513,3122.9,3121.7,0.00205904]
[1642622873599,1.0,3122.8,3122.1,0.01250532]
[1642622873794,3.89614353,3122.7,3122.1,0.00791532]
[1642622873993,18.848,3122.6,3121.8,0.01421059]
[1642622874196,1.39470494,3122.0,3121.8,0.00862059]
[1642622874393,0.8023,3122.1,3121.8,0.00862059]
[1642622874592,0.3,3122.0,3121.8,0.00862059]
[1642622874995,1.0,3122.0,3121.8,0.00862059]
[1642622876399,3.13594991,3121.9,3121.8,0.00862059]
[1642622876603,4.73594991,3121.9,3121.8,0.00862059]
[1642622877002,1.6,3121.9,3121.8,0.00862059]
[1642622877349,7.01137751,3121.9,3121.6,0.00975744]
[1642622877547,2.2969,3121.8,3121.6,0.00975744]
[1642622877748,3.66764954,3121.7,3121.6,0.00975744]
[1642622877947,0.761,3121.7,3121.6,0.00781744]
[1642622878146,1.761,3121.7,3121.6,0.00781744]
[1642622878347,1.761,3121.7,3120.7,0.01293325]
[1642622878546,0.761,3121.7,3120.8,0.18411589]
[1642622878746,0.3,3121.6,3120.8,0.18411589]
[1642622878948,0.3,3121.6,3121.2,1.4000047]
[1642622879346,0.3,3121.6,3121.3,0.00952271]
[1642622880851,1.0,3121.8,3121.3,0.00952271]
[1642622881095,4.4857,3122.3,3121.3,0.00952271]
[1642622881885,4.4857,3122.3,3121.8,1.15365985]
[1642622882087,1.13819997,3122.6,3121.3,0.00952271]
[1642622882286,1.0,3122.2,3121.9,0.00611217]
[1642622882491,1.0,3122.2,3121.3,0.00952271]
[1642622882687,4.65439997,3122.6,3121.7,1.39956964]
[1642622882688,1.0,3122.5,3121.7,1.39956964]
[1642622882888,1.1714,3122.6,3121.7,1.39956964]
[1642622883087,10.9989,3123.1,3121.7,1.39956964]
[1642622883088,0.128,3123.1,3121.8,3.09703918]
[1642622883287,3.6544,3123.6,3121.8,3.09703918]
[1642622883288,0.128,3123.7,3121.8,4.44873918]
[1642622883488,1.0,3123.5,3121.9,0.16625217]
[1642622883685,0.3,3123.5,3121.9,0.00611217]
[1642622883886,0.00241419,3123.4,3122.0,0.00554374]
[1642622884087,0.30241419,3123.4,3123.1,1.29973118]
[1642622884287,0.00184576,3123.3,3121.9,3.97921217]
[1642622884488,0.00184576,3123.3,3121.9,0.00611217]
[1642622884688,0.00184576,3123.3,3121.8,0.47309583]
[1642622884689,0.00127734,3123.2,3122.0,0.00554374]
[1642622884937,0.128,3123.1,3121.9,0.00611217]
[1642622885338,1.13646788,3123.0,3122.0,1.45409306]
[1642622885536,1.43646788,3123.0,3122.0,1.45409306]
[1642622885736,1.43646788,3123.0,3122.1,0.00497532]
[1642622886538,0.00127734,3123.2,3122.1,3.14583126]
[1642622886840,0.00127734,3123.2,3122.6,0.01261623]
[1642622887039,0.00127734,3123.2,3122.7,0.128]
[1642622887239,0.00127734,3123.2,3122.7,0.00156478]
[1642622887440,0.00127734,3123.2,3122.8,0.00099636]
[1642622887642,0.00127734,3123.2,3122.9,1.54544069]
[1642622888037,0.00127734,3123.2,3123.0,2.95758668]
[1642622888241,0.00127734,3123.2,3123.0,3.08558668]
[1642622888716,7.734e-05,3123.2,3123.1,7.3033307]
[1642622888915,7.734e-05,3123.2,3123.1,10.76260321]
[1642622889114,7.734e-05,3123.2,3123.1,11.06260321]
[1642622889515,7.734e-05,3123.2,3123.1,9.56941251]
[1642622889816,7.734e-05,3123.2,3123.1,9.26941251]
[1642622890014,7.734e-05,3123.2,3123.1,8.98127251]
[1642622890415,7.734e-05,3123.2,3123.1,8.44411545]
[1642622890617,7.734e-05,3123.2,3123.1,5.65]
[1642622891017,7.734e-05,3123.2,3122.7,0.00156478]
[1642622891421,7.734e-05,3123.2,3122.7,0.00276478]
[1642622893450,7.734e-05,3123.2,3122.8,0.128]
[1642622893643,0.035,3123.8,3123.2,0.00072266]
[1642622893845,0.035,3123.8,3123.3,1.40141491]
[1642622893846,0.0001,3123.8,3123.3,1.40141491]
[1642622894045,0.00284212,3123.7,3123.4,3.57795852]
[1642622894245,0.00284212,3123.7,3123.5,1.37387149]
[1642622894448,0.0001,3123.8,3123.5,1.37387149]
[1642622894449,0.0001,3123.8,3123.6,4.05]
[1642622894645,0.0001,3123.8,3123.7,6.63331568]
[1642622894845,0.0001,3123.8,3123.7,3.85]
[1642622895644,0.0001,3123.8,3123.7,5.65]
[1642622896290,0.0001,3123.8,3123.7,3.85]
[1642622897590,0.0001,3123.8,3123.7,5.65]
[1642622898793,0.0001,3123.8,3123.7,3.85]
[1642622899694,0.0001,3123.8,3123.4,3.20901879]
[1642622899966,0.0001,3123.8,3123.3,3.6488]
[1642622900164,0.00284212,3123.7,3123.3,3.6488]
[1642622900567,0.00227369,3123.6,3123.2,0.00072266]
[1642622900970,0.00170527,3123.5,3123.4,1.53186883]
[1642622901565,0.00170527,3123.5,3123.4,5.38186883]
[1642622903169,0.00170527,3123.5,3123.4,8.34460451]
[1642622904789,0.00170527,3123.5,3123.3,0.00347459]
[1642622905192,0.0001,3123.8,3123.3,0.00347459]
[1642622905193,0.12913685,3123.4,3123.3,0.00347459]
[1642622906396,0.00113685,3123.4,3123.3,0.00347459]
[1642622912294,0.12913685,3123.4,3123.3,0.00347459]
[1642622912491,0.00113685,3123.4,3123.3,0.00347459]
[1642622913098,0.00113685,3123.4,3123.3,6.799e-05]
[1642622913099,0.12913685,3123.4,3123.3,6.799e-05]
[1642622913297,0.12913685,3123.4,3123.2,0.00072266]
[1642622913496,6.539,3123.3,3123.2,0.00072266]
[1642622913702,9.21931246,3123.3,3123.2,0.00072266]
[1642622913995,11.64779731,3123.3,3123.2,0.00072266]
[1642622914395,4.56931246,3123.3,3123.2,0.00072266]
[1642622914598,4.86931246,3123.3,3123.2,0.00072266]
[1642622914847,2.189,3123.3,3123.2,0.00072266]
[1642622915050,1.189,3123.3,3123.2,0.00072266]
[1642622915447,3.489,3123.3,3123.2,0.00072266]
[1642622915649,4.489,3123.3,3123.2,0.00072266]
[1642622916353,7.21511176,3123.3,3123.2,0.00072266]
[1642622916550,9.66511176,3123.3,3123.2,0.00072266]
[1642622916850,5.65,3123.2,3122.9,0.00170527]
[1642622917051,3.31511176,3123.1,3122.9,0.00170527]
[1642622917251,0.589,3123.1,3121.6,0.00909478]
[1642622917452,1.0,3123.0,3121.7,1.23696406]
[1642622917653,0.589,3122.9,3121.9,1.29391155]
[1642622918056,0.889,3122.9,3122.0,0.00682108]
[1642622919504,0.889,3122.9,3121.6,0.00909478]
[1642622920503,3.02644678,3122.8,3121.6,0.00909478]
[1642622920704,0.461,3122.7,3121.6,0.00909478]
[1642622920902,1.461,3122.7,3121.7,1.22439498]
[1642622921103,0.761,3122.7,3121.7,1.22439498]
[1642622921304,1.761,3122.7,3121.8,0.00795793]
[1642622921706,2.85459758,3122.6,3121.8,0.00795793]
[1642622922004,2.85459758,3122.6,3121.4,0.03]
[1642622922005,0.761,3122.5,3121.5,0.0096632]
[1642622922205,1.79778124,3122.5,3121.5,0.0096632]
[1642622922455,0.79778124,3122.5,3121.5,0.0096632]
[1642622922653,1.1336,3122.4,3121.5,0.0096632]
[1642622922866,0.461,3122.3,3121.5,0.0096632]
[1642622923061,0.761,3122.3,3121.5,0.0096632]
[1642622923459,1.761,3122.3,3121.5,0.0096632]
[1642622924259,1.761,3122.3,3121.3,0.01080005]
[1642622924860,4.9449,3122.3,3121.3,0.01080005]
[1642622925062,4.9449,3122.3,3120.9,0.01307374]
[1642622925560,4.9449,3122.3,3120.9,1.12019755]
[1642622926089,4.9449,3122.3,3121.0,0.01250532]
[1642622926493,4.9449,3122.3,3121.4,1.15841159]
[1642622926895,4.9449,3122.3,3121.5,0.0096632]
[1642622926896,4.4839,3122.3,3121.5,0.0096632]
[1642622927100,4.4839,3122.3,3121.5,2.81478217]
[1642622927298,1.3,3122.3,3121.5,2.78572425]
[1642622927500,1.1336,3122.4,3121.6,0.00909478]
[1642622927899,1.1336,3122.4,3122.0,2.8850044]
[1642622928100,0.00733937,3122.5,3122.0,2.8850044]
[1642622928301,0.00731938,3122.2,3122.1,0.00625266]
[1642622928703,0.00731938,3122.2,3121.1,3.47372583]
[1642622928704,0.00731938,3122.2,3121.2,1.17150847]
[1642622928905,0.00731938,3122.2,3121.6,0.01247767]
[1642622929315,0.00731938,3122.2,3121.7,0.00852635]
[1642622929503,0.00731938,3122.2,3121.7,0.30852635]
[1642622929703,0.00731938,3122.2,3121.8,3.11339003]
[1642622929946,0.00731938,3122.2,3121.9,2.72538845]
[1642622930145,0.00731938,3122.2,3121.9,2.73277796]
[1642622930344,0.00731938,3122.2,3122.0,0.00682108]
[1642622931747,0.00731938,3122.2,3122.0,2.84372009]
[1642622932247,0.00731938,3122.2,3122.1,5.65625266]
[1642622933347,0.13531272,3123.3,3122.1,8.56251352]
[1642622933798,0.13531272,3123.3,3122.2,0.00568424]
[1642622933997,0.13531272,3123.3,3122.4,0.01250453]
[1642622933998,0.00731272,3123.3,3122.4,0.01250453]
[1642622934198,0.00731272,3123.3,3122.5,0.461]
[1642622934503,0.00731272,3123.3,3122.6,4.12491613]
[1642622934696,0.00731272,3123.3,3122.7,4.4124]
[1642622934900,0.00731272,3123.3,3122.9,2.63829562]
[1642622935099,0.00731272,3123.3,3123.0,3.2325327]
[1642622935299,0.00731272,3123.3,3123.0,3.53366955]
[1642622935699,0.00731272,3123.3,3123.1,0.461]
[1642622935900,0.00731272,3123.3,3123.2,9.0483108]
[1642622938044,1.13539265,3124.5,3123.2,9.0483108]
[1642622938245,1.43539265,3124.5,3123.2,9.0483108]
[1642622938445,2.73188368,3124.4,3123.2,3.3983108]
[1642622938644,3.85316859,3124.3,3123.2,3.3983108]
[1642622938844,1.13425266,3124.3,3123.2,3.3983108]
[1642622939048,1.13425266,3124.3,3123.1,3.31174323]
[1642622939049,0.00568423,3124.2,3123.1,3.31174323]
[1642622939248,0.00568423,3124.2,3123.4,1.29215321]
[1642622939453,1.30739265,3124.5,3123.4,1.29215321]
[1642622939454,0.13311581,3124.1,3123.4,2.56756538]
[1642622939655,0.00511581,3124.1,3123.4,2.56756538]
[1642622939849,0.00454739,3124.0,3123.4,2.56756538]
[1642622940049,0.00454739,3124.0,3123.1,3.31174323]
[1642622940249,0.128,3124.4,3123.1,0.461]
[1642622940250,0.00397896,3123.9,3123.1,0.461]
[1642622940650,0.00341054,3123.8,3123.0,0.00113685]
[1642622941108,2.72530493,3124.3,3122.7,3.9514]
[1642622941109,1.25208177,3123.7,3122.9,0.00170527]
[1642622941298,1.25208177,3123.7,3122.8,0.0022737]
[1642622941497,2.72802035,3123.6,3122.8,0.0022737]
[1642622941694,2.72802035,3123.6,3121.9,2.74707387]
[1642622941695,0.128,3123.5,3122.7,0.00284212]
[1642622941993,0.128,3123.5,3121.7,1.61799155]
[1642622941994,0.00113685,3123.4,3122.0,0.00682108]
[1642622942199,0.128,3123.3,3122.0,0.00682108]
[1642622942394,0.128,3123.3,3121.8,1.61799155]
[1642622942395,0.128,3123.3,3122.5,1.44149458]
[1642622942598,0.128,3123.3,3121.9,1.62538106]
[1642622942801,3.08558668,3123.3,3122.6,0.00341054]
[1642622942998,3.08558668,3123.3,3121.7,1.61799155]
[1642622942999,0.128,3123.3,3122.0,0.00682108]
[1642622943200,0.128,3123.3,3121.8,1.62594948]
[1642622943401,0.128,3123.3,3121.9,0.00738951]
[1642622944200,0.128,3123.3,3122.6,1.30733146]
[1642622944600,0.128,3123.3,3122.7,0.00284212]
[1642622945250,0.128,3123.3,3123.2,3.59335993]
[1642622945452,0.00853616,3123.4,3123.2,3.59335993]
[1642622946052,0.00853616,3123.4,3123.2,4.94765993]
[1642622946252,0.128,3124.5,3123.3,5.65]
[1642622946455,2.72514319,3124.4,3123.3,5.65]
[1642622946651,0.00341054,3124.0,3123.3,5.65]
[1642622947051,0.00284211,3123.9,3123.3,5.65]
[1642622947456,0.00227369,3123.8,3123.3,5.65]
[1642622947855,0.00170527,3123.7,3123.3,5.65]
[1642622948153,2.72511924,3124.4,3123.6,1.32460157]
[1642622948354,2.72511924,3124.4,3123.2,1.24335993]
[1642622948619,0.128,3124.3,3123.2,1.24335993]
[1642622948806,2.72511924,3124.2,3123.2,1.24335993]
[1642622949007,2.72966662,3124.2,3123.2,1.24335993]
[1642622949206,1.30397896,3124.1,3123.2,1.24335993]
[1642622949408,4.29028007,3124.1,3123.2,1.24335993]
[1642622949607,0.13141054,3124.0,3123.2,1.24335993]
[1642622949808,0.13141054,3124.0,3123.2,2.73496087]
[1642622950013,0.00284211,3123.9,3123.2,2.73496087]
[1642622950410,0.128,3124.2,3123.2,2.73496087]
[1642622950411,0.00227369,3123.8,3123.2,2.73496087]
[1642622950811,0.00170527,3123.7,3123.2,2.73496087]
[1642622951211,0.00113684,3123.6,3123.2,2.73496087]
[1642622952633,0.00227369,3123.8,3123.2,1.24335993]
[1642622952829,0.00227369,3123.8,3122.7,7.57854212]
[1642622952830,0.00170527,3123.7,3122.7,7.57854212]
[1642622953039,0.00170527,3123.7,3122.7,3.94184212]
[1642622953232,0.12913684,3123.6,3122.8,0.00341055]
[1642622953432,3.51703284,3123.6,3122.8,0.00341055]
[1642622954032,1.0,3123.5,3122.8,0.00341055]
[1642622954233,0.128,3123.4,3122.8,0.00341055]
[1642622954437,3.10275811,3123.4,3122.8,0.00341055]
[1642622954636,1.3,3123.3,3122.8,0.00341055]
[1642622954935,3.31537343,3123.2,3122.5,0.00511582]
[1642622955336,1.0,3123.1,3122.5,0.00511582]
[1642622955534,2.94614878,3123.0,3122.5,0.00511582]
[1642622955734,0.128,3123.0,3122.5,0.00511582]
[1642622955935,1.0,3122.9,3122.3,1.39557093]
[1642622956182,0.128,3123.0,3122.3,1.40182359]
[1642622956479,0.128,3123.0,3122.4,0.00568424]
[1642622956878,1.128,3123.0,3122.4,0.00568424]
[1642622958481,2.98393834,3122.9,3122.4,0.00568424]
[1642622958682,2.98393834,3122.9,3121.9,0.00852636]
[1642622958882,1.0,3122.8,3121.9,0.00852636]
[1642622959083,0.128,3122.9,3121.9,1.36019925]
[1642622959289,0.128,3123.3,3121.9,3.9781908]
[1642622959483,0.128,3123.4,3122.0,2.22594948]
[1642622959683,1.2739,3123.8,3122.1,3.11772668]
[1642622959943,1.1459,3123.8,3122.3,1.61799155]
[1642622960145,1.1459,3123.8,3123.4,1.43175478]
[1642622960444,2.72572671,3123.7,3123.5,1.28749529]
[1642622960640,0.128,3124.1,3123.5,1.28749529]
[1642622960844,2.72555436,3124.0,3123.5,1.28749529]
[1642622961242,2.72555436,3124.2,3123.5,1.28749529]
[1642622961442,0.128,3124.1,3123.5,1.28749529]
[1642622961646,2.72555436,3124.0,3123.5,1.28749529]
[1642622962046,0.128,3124.3,3123.5,1.28749529]
[1642622962244,2.7255492,3124.2,3123.5,1.28749529]
[1642622962445,0.128,3124.1,3123.5,1.28749529]
[1642622962643,2.7255492,3124.0,3123.5,1.28749529]
[1642622962845,2.7255492,3124.0,3122.6,6.67468668]
[1642622962846,1.128,3123.9,3122.6,6.67468668]
[1642622963048,0.128,3123.5,3122.6,3.7171]
[1642622963245,0.128,3123.5,3122.7,0.00397897]
[1642622963982,0.128,3123.5,3123.0,1.34711768]
[1642622964389,0.128,3123.5,3123.1,0.00170528]
[1642622965186,0.00113684,3123.6,3123.1,0.00170528]
[1642622965386,0.00113684,3123.6,3123.4,1.47618152]
[1642622965789,0.00113684,3123.6,3123.5,5.19633048]
[1642622965988,0.00113684,3123.6,3123.5,2.45]
[1642622966192,0.00113684,3123.6,3123.5,5.21675889]
[1642622968345,0.00113684,3123.6,3123.5,5.21578279]
[1642622968547,0.00113684,3123.6,3123.5,2.45]
[1642622968745,0.00113684,3123.6,3123.5,5.24725642]
[1642622968945,0.00113684,3123.6,3123.5,7.54725642]
[1642622969345,2.72514124,3124.5,3123.6,5.65]
[1642622969549,10.9162,3125.1,3123.7,4.05658589]
[1642622969550,0.61183842,3125.0,3123.7,4.05658589]
[1642622969746,0.00454739,3124.4,3123.7,4.51758589]
[1642622969951,0.00454739,3124.4,3123.7,4.81758589]
[1642622970151,1.48383842,3125.0,3123.7,4.81758589]
[1642622970152,0.00397897,3124.3,3123.7,4.81758589]
[1642622970453,0.00341054,3124.2,3123.7,4.81758589]
[1642622970654,0.00341054,3124.2,3123.8,2.35604968]
[1642622970850,0.00284212,3124.1,3123.9,3.13974125]
[1642622971380,0.0022737,3124.0,3123.9,3.13974125]
[1642622971581,0.0022737,3124.0,3123.8,2.81704968]
[1642622971981,0.00170527,3123.9,3123.8,2.81704968]
[1642622972580,0.00170527,3123.9,3123.8,0.461]
[1642622972781,0.00170527,3123.9,3123.4,4.1958]
[1642622973184,2.72468706,3124.7,3123.4,4.1958]
[1642622973185,0.00113685,3123.8,3123.4,4.1958]
[1642622973584,1.128,3124.4,3123.4,3.7348]
[1642622973784,2.72468706,3124.3,3123.5,1.22361089]
[1642622973985,2.72866603,3124.3,3123.5,1.22361089]
[1642622974186,0.00341054,3124.2,3123.5,1.22361089]
[1642622974483,0.00284212,3124.1,3123.5,1.22361089]
[1642622974938,0.0022737,3124.0,3123.1,0.12970528]
[1642622975335,0.00170527,3123.9,3123.2,0.00227369]
[1642622975739,0.00113685,3123.8,3123.2,0.00227369]
[1642622975935,0.00113685,3123.8,3123.4,1.56434448]
[1642622976136,2.72468706,3124.0,3123.4,1.56434448]
[1642622976137,0.00170527,3123.9,3123.4,1.56434448]
[1642622976536,0.00113685,3123.8,3123.4,1.56434448]
[1642622976939,0.00170527,3123.9,3123.4,1.56434448]
[1642622977336,0.00113685,3123.8,3123.4,1.56434448]
[1642622977736,0.00170527,3123.9,3123.3,1.23985922]
[1642622978137,0.00113685,3123.8,3123.4,0.00113684]
[1642622978592,0.00170527,3123.9,3122.9,0.00397896]
[1642622978983,0.00113685,3123.8,3123.0,1.11928896]
[1642622979384,0.00170527,3123.9,3123.1,0.00284212]
[1642622979784,0.00113685,3123.8,3123.1,0.00284212]
[1642622980188,0.00170527,3123.9,3123.1,0.00284212]
[1642622980590,0.00113685,3123.8,3123.1,0.00284212]
[1642622980994,0.00170527,3123.9,3123.1,2.86486052]
[1642622981290,2.72468706,3124.0,3123.2,0.13854472]
[1642622981291,0.00113685,3123.8,3123.2,0.13854472]
[1642622981490,0.00113685,3123.8,3123.3,0.13627103]
[1642622981690,0.00170527,3123.9,3123.4,0.13627103]
[1642622981891,0.00170527,3123.9,3123.5,0.13627103]
[1642622982093,0.00113685,3123.8,3123.4,0.00113684]